bitfinex/quotes_ETHUSD_20250603
["timestamp","ask_amount","ask_price","bid_price","bid_amount"]
[1748946823734,3.82004683,2617.8,2617.5,3.15030237]
[1748946826714,4.97302867,2617.8,2617.5,0.3832343]
[1748946826914,3.82050963,2617.5,2617.3,11.15030237]
[1748946827103,3.8201524,2617.7,2617.3,11.15030237]
[1748946827413,3.82037293,2617.6,2617.3,11.15030237]
[1748946828018,3.8201949,2617.7,2617.3,11.15030237]
[1748946828348,3.8203196,2617.6,2617.3,11.15030237]
[1748946828553,3.82043108,2617.6,2617.3,11.15030237]
[1748946830451,1.15298184,2617.8,2617.3,11.15030237]
[1748946830660,1.0619,2617.6,2616.4,0.83130989]
[1748946830861,3.82156824,2616.8,2616.5,3.15030237]
[1748946831092,3.82140136,2616.9,2616.6,8.0]
[1748946831414,3.8215211,2616.8,2616.6,8.0]
[1748946831617,3.89,2617.1,2616.3,3.80577206]
[1748946831618,1.0619,2617.0,2616.3,3.80577206]
[1748946831855,3.82174015,2616.7,2616.3,3.80577206]
[1748946832059,3.8215425,2616.8,2616.5,3.15030237]
[1748946832462,7.7125425,2616.8,2616.5,3.15030237]
[1748946832986,7.42305377,2616.9,2616.7,3.15030237]
[1748946834089,3.82146132,2616.8,2616.7,3.15030237]
[1748946834655,3.82146132,2616.8,2616.5,3.15030237]
[1748946838073,7.70940021,2616.9,2616.5,3.15030237]
[1748946838779,3.82148053,2616.8,2616.5,3.15030237]
[1748946839105,3.82154464,2616.8,2616.5,3.15030237]
[1748946839307,3.82171195,2616.7,2616.5,3.15030237]
[1748946839499,3.821684,2616.7,2616.3,3.80577206]
[1748946839697,1.25928889,2616.8,2616.3,3.80577206]
[1748946839872,3.8216788,2616.7,2616.3,3.80577206]
[1748946840302,3.82169516,2616.7,2616.3,3.80577206]
[1748946840490,3.82201554,2616.5,2616.3,0.37789632]
[1748946842117,4.992,2616.6,2616.3,0.37789632]
[1748946842118,8.81382884,2616.6,2616.3,0.37789632]
[1748946842725,4.992,2616.6,2616.3,0.37789632]
[1748946842898,8.81375857,2616.6,2616.3,0.37789632]
[1748946843732,3.82189948,2616.5,2616.3,0.37789632]
[1748946843934,3.82204555,2616.4,2616.3,0.37789632]
[1748946844393,1.2635683,2616.5,2616.1,0.02]
[1748946844733,4.84893774,2616.2,2616.1,0.02]
[1748946845230,3.82233774,2616.2,2616.1,0.02]
[1748946845431,6.03571671,2616.2,2616.1,0.02]
[1748946846625,7.04171671,2616.2,2616.1,0.02]
[1748946850826,9.92371671,2616.2,2616.1,0.02]
[1748946851049,9.88529364,2616.2,2616.1,0.02]
[1748946855964,9.88729364,2616.2,2616.1,0.02]
[1748946856322,10.89229364,2616.2,2616.1,0.02]
[1748946857167,5.99729364,2616.2,2616.1,0.02]
[1748946857326,10.93171671,2616.2,2616.1,0.02]
[1748946857529,10.89329364,2616.2,2616.1,0.02]
[1748946859148,7.00329364,2616.2,2616.1,0.02]
[1748946859364,9.92471671,2616.2,2616.1,0.02]
[1748946859541,9.88629364,2616.2,2616.1,0.02]
[1748946861462,5.99729364,2616.2,2616.1,0.02]
[1748946861663,9.92671671,2616.2,2616.1,0.02]
[1748946861840,9.88829364,2616.2,2616.1,0.02]
[1748946863261,9.88729364,2616.2,2616.1,0.02]
[1748946864040,5.99729364,2616.2,2616.1,0.02]
[1748946864268,9.92571671,2616.2,2616.1,0.02]
[1748946864439,9.88729364,2616.2,2616.1,0.02]
[1748946869241,13.04139027,2616.2,2616.1,0.02]
[1748946870578,9.88729364,2616.2,2616.1,0.02]
[1748946872908,5.99729364,2616.2,2616.1,0.02]
[1748946873115,7.93,2616.6,2616.1,0.02]
[1748946873116,0.9752,2617.0,2616.3,3.82219164]
[1748946873259,0.9752,2617.0,2616.6,3.15409663]
[1748946873260,3.8212999,2617.0,2616.6,3.15409663]
[1748946873462,3.919,2617.3,2616.7,1.2636312]
[1748946873659,3.8212488,2617.0,2616.7,0.38116771]
[1748946873853,3.8212488,2617.0,2616.6,1.03822328]
[1748946874073,3.8212488,2617.0,2616.4,6.97608924]
[1748946874474,3.82109615,2617.1,2616.5,3.82187344]
[1748946874674,3.82087727,2617.2,2616.5,3.82187344]
[1748946874880,3.82114631,2617.1,2616.5,3.82187344]
[1748946875078,3.82118801,2617.0,2616.5,3.82187344]
[1748946875877,3.82109823,2617.1,2616.5,3.82187344]
[1748946876192,3.82127999,2617.0,2616.5,3.82182007]
[1748946876698,3.82127999,2617.0,2616.6,3.15409663]
[1748946877280,3.82106872,2617.1,2616.6,3.82173758]
[1748946877481,3.915,2617.2,2616.8,3.82137995]
[1748946877704,3.915,2617.2,2616.9,3.82123962]
[1748946877908,3.8205744,2617.5,2616.8,3.82138331]
[1748946878069,8.759719,2617.6,2616.9,8.0]
[1748946878275,3.82038793,2617.6,2617.0,3.82106069]
[1748946878497,7.73647256,2617.5,2617.0,3.82106069]
[1748946879165,3.82089046,2617.2,2616.9,0.8426312]
[1748946879466,3.82080923,2617.3,2616.8,3.82145846]
[1748946879692,3.82080923,2617.3,2616.9,0.32114534]
[1748946879900,3.82080923,2617.3,2616.8,3.82145846]
[1748946880204,3.82064299,2617.4,2616.9,3.8212922]
[1748946880767,7.73449543,2617.5,2616.9,8.0]
[1748946880995,3.82069535,2617.4,2617.0,0.32113916]
[1748946881181,3.82069535,2617.4,2616.9,11.82131222]
[1748946881516,3.82069535,2617.4,2617.0,0.32113952]
[1748946881805,3.82069535,2617.4,2616.9,11.82131222]
[1748946883731,7.73451545,2617.5,2617.1,8.0]
[1748946884011,3.911,2617.5,2617.1,11.82100016]
[1748946884387,7.73145763,2617.5,2617.1,11.82100016]
[1748946884812,1.005,2617.8,2617.2,3.82087727]
[1748946884813,3.82000152,2617.8,2617.2,3.82087727]
[1748946884983,3.8202975,2617.6,2617.2,3.82087727]
[1748946885184,3.8202975,2617.6,2617.1,3.82102327]
[1748946885399,0.9725,2618.1,2617.3,5.88113578]
[1748946885616,4.8875,2618.1,2617.5,3.82034429]
[1748946885918,3.81971739,2618.0,2617.5,3.82043139]
[1748946886074,4.8875,2618.1,2617.4,3.8205626]
[1748946886075,4.69065073,2617.9,2617.4,3.82051977]
[1748946886397,4.69065073,2617.9,2617.4,3.82051486]
[1748946886793,3.82000783,2617.8,2617.4,3.82051486]
[1748946886988,4.78472174,2617.9,2617.3,5.88113578]
[1748946887209,3.82013412,2617.8,2617.3,9.70184995]
[1748946887704,3.82013412,2617.8,2617.4,3.82057708]
[1748946887876,8.60459529,2617.9,2617.4,8.0]
[1748946888077,4.68054376,2617.8,2617.4,8.0]
[1748946891842,3.82015478,2617.7,2617.4,8.0]
[1748946892214,3.82015478,2617.7,2617.4,0.92212904]
[1748946893540,3.82015478,2617.7,2617.3,5.88113578]
[1748946893837,3.82015478,2617.7,2617.3,9.70185378]
[1748946896751,4.68053607,2617.8,2617.3,9.70185378]
[1748946897455,4.68053607,2617.8,2617.3,5.88113578]
[1748946897456,3.82021077,2617.7,2617.3,5.88113578]
[1748946897806,3.82021077,2617.7,2617.3,9.70186628]
[1748946898005,3.82021077,2617.7,2617.3,5.88113578]
[1748946898747,3.82046358,2617.5,2616.7,0.8322892]
[1748946899042,3.82138481,2616.9,2616.7,6.26474249]
[1748946899242,3.82116927,2617.0,2616.8,3.15016969]
[1748946899603,3.906,2617.1,2616.8,3.15016969]
[1748946899810,7.72710366,2617.1,2617.0,3.15016969]
[1748946900753,3.906,2617.1,2617.0,3.15016969]
[1748946902310,3.82065949,2617.4,2617.0,3.15016969]
[1748946902516,3.905,2617.3,2617.2,3.15016969]
[1748946902751,7.72573128,2617.3,2617.2,3.15016969]
[1748946903449,7.72573128,2617.3,2617.2,3.52472367]
[1748946903610,3.905,2617.3,2617.2,3.52472367]
[1748946904051,7.72573128,2617.3,2617.2,3.52472367]
[1748946904345,3.82065968,2617.4,2617.2,3.52472367]
[1748946904643,3.82073128,2617.3,2617.2,3.52472367]
[1748946905453,7.72365767,2617.4,2617.2,3.15016969]
[1748946905822,3.82065767,2617.4,2617.2,3.15016969]
[1748946906863,3.82065767,2617.4,2617.2,3.53219841]
[1748946908249,3.82073128,2617.3,2617.2,3.53219841]
[1748946908550,3.82066817,2617.4,2617.2,3.53219841]
[1748946908749,3.82073128,2617.3,2617.2,3.53219841]
[1748946909450,3.8205995,2617.4,2617.2,3.53219841]
[1748946911333,3.9,2617.5,2617.2,3.53219841]
[1748946911534,7.72043935,2617.5,2617.4,3.15016969]
[1748946911856,9.10308405,2617.5,2617.4,3.15016969]
[1748946913760,1.3826447,2617.5,2617.4,3.15016969]
[1748946913982,1.3826447,2617.5,2617.0,0.38307404]
[1748946913983,0.9883,2617.4,2617.0,0.38307404]
[1748946914180,5.2806447,2617.5,2616.3,3.15016969]
[1748946914181,3.82160978,2616.7,2616.3,3.15016969]
[1748946914499,3.82177824,2616.6,2616.5,3.15016969]
[1748946914843,3.911,2616.7,2616.5,3.15016969]
[1748946915045,3.82175342,2616.6,2616.5,3.15016969]
[1748946915271,3.82175342,2616.6,2616.5,3.53446505]
[1748946916735,3.82197224,2616.5,2616.1,8.02]
[1748946916935,3.82197224,2616.5,2616.4,3.15016969]
[1748946918558,3.82197224,2616.5,2616.4,3.53470723]
[1748946920669,3.82197224,2616.5,2616.4,0.38453754]
[1748946920853,3.82197224,2616.5,2616.4,3.53470723]
[1748946921058,3.82197224,2616.5,2616.4,3.15016969]
[1748946923000,0.9444,2616.7,2616.4,3.53428727]
[1748946923164,3.905,2616.6,2616.4,0.38411758]
[1748946923479,3.74048616,2616.8,2616.6,3.15016969]
[1748946923683,3.904,2616.7,2616.6,3.15016969]
[1748946924483,7.72560736,2616.7,2616.6,3.15016969]
[1748946924648,3.904,2616.7,2616.6,3.15016969]
[1748946925379,1.0079,2617.1,2616.6,3.15016969]
[1748946925571,3.82126632,2617.0,2616.9,3.15016969]
[1748946927290,3.82108776,2617.1,2616.9,3.15016969]
[1748946927692,3.905,2617.1,2616.9,3.15016969]
[1748946929099,7.72603113,2617.1,2616.9,3.15016969]
[1748946933064,3.905,2617.1,2616.9,3.15016969]
[1748946933799,7.72603193,2617.1,2616.9,3.15016969]
[1748946934005,3.905,2617.1,2616.9,3.15016969]
[1748946934305,7.72604196,2617.1,2616.9,3.15016969]
[1748946935005,3.905,2617.1,2616.9,3.15016969]
[1748946935203,7.72614057,2617.1,2616.9,3.15016969]
[1748946935509,3.82116927,2617.0,2616.9,3.15016969]
[1748946937319,7.72610557,2617.1,2616.9,3.15016969]
[1748946937503,3.82096095,2617.2,2616.9,3.15016969]
[1748946937815,3.82096095,2617.2,2617.1,3.15016969]
[1748946938210,7.72096095,2617.2,2617.1,3.15016969]
[1748946941223,3.82118539,2617.0,2616.9,3.15016969]
[1748946946246,1.0343,2617.1,2616.4,1.40072676]
[1748946946459,3.82157126,2616.8,2616.7,3.15016969]
[1748946946811,7.71638832,2616.9,2616.7,3.15016969]
[1748946948244,3.82146132,2616.8,2616.7,11.15016969]
[1748946948544,3.82146132,2616.8,2616.7,3.15016969]
[1748946949503,3.82146132,2616.8,2616.1,7.73746558]
[1748946949504,4.81253774,2616.2,2616.1,0.02]
[1748946949721,8.71453774,2616.2,2616.1,0.02]
[1748946950934,7.72433774,2616.2,2616.1,3.17016969]
[1748946952653,7.72633774,2616.2,2616.1,3.17016969]
[1748946958167,3.82233774,2616.2,2616.1,3.17016969]
[1748946960047,3.82233774,2616.2,2616.1,0.02]
[1748946960246,5.07395244,2616.2,2616.1,0.02]
[1748946960465,3.82233774,2616.2,2616.1,0.02]
[1748946962474,7.72133774,2616.2,2616.1,0.02]
[1748946962667,7.71199131,2616.2,2616.1,0.02]
[1748946971290,3.82196867,2616.5,2616.2,8.0]
[1748946971464,3.82196867,2616.5,2616.1,6.99265302]
[1748946971465,7.71689948,2616.5,2616.4,3.15016969]
[1748946971670,3.82187271,2616.6,2616.4,3.15016969]
[1748946971875,3.82159241,2616.8,2616.4,3.15016969]
[1748946972205,7.71960736,2616.7,2616.6,3.15016969]
[1748946974508,3.82160736,2616.7,2616.6,3.15016969]
[1748946974714,7.71760736,2616.7,2616.6,3.15016969]
[1748946975415,3.82218559,2616.4,2616.2,3.15016969]
[1748946975617,3.82219164,2616.3,2616.2,8.0]
[1748946975916,3.82233774,2616.2,2616.1,0.02]
[1748946983588,4.78553774,2616.2,2616.1,0.02]
[1748946983788,6.03601068,2616.2,2616.1,0.02]
[1748946991114,9.93201068,2616.2,2616.1,0.02]
[1748946991519,6.03601068,2616.2,2616.1,0.02]
[1748946991720,9.93201068,2616.2,2616.1,0.02]
[1748947008400,3.82332107,2615.6,2615.4,3.15016969]
[1748947008560,6.10967294,2616.2,2615.4,3.15016969]
[1748947008561,3.886,2615.8,2615.4,3.15016969]
[1748947008891,3.82336073,2615.5,2615.4,3.52601851]
[1748947010491,3.82328364,2615.6,2615.4,3.52601851]
[1748947011101,3.82336073,2615.5,2615.4,3.52601851]
[1748947011258,7.7091307,2615.7,2615.4,3.52601851]
[1748947012193,3.886,2615.7,2615.4,3.52601851]
[1748947012383,3.82329149,2615.6,2615.4,3.52601851]
[1748947013271,3.82336073,2615.5,2615.4,3.52601851]
[1748947015412,3.82336073,2615.5,2615.4,0.37584882]
[1748947015693,3.82379932,2615.2,2615.1,0.02]
[1748947016602,3.82372739,2615.3,2615.1,0.02]
[1748947016805,7.7091061,2615.7,2615.1,0.02]
[1748947016970,3.886,2615.7,2615.1,0.02]
[1748947017166,3.82378669,2615.3,2615.1,0.02]
[1748947018309,3.82378669,2615.3,2615.1,0.41136229]
[1748947018607,3.82378669,2615.3,2615.1,0.02]
[1748947021315,3.82379932,2615.2,2615.1,0.02]
[1748947022123,4.58854767,2615.2,2615.1,0.02]
[1748947022276,5.60954767,2615.2,2615.1,0.02]
[1748947025234,8.75971736,2615.2,2615.1,0.02]
[1748947027356,5.60954767,2615.2,2615.1,0.02]
[1748947031130,13.53954767,2615.2,2615.1,0.02]
[1748947031704,3.8251157,2614.3,2614.1,3.15016969]
[1748947033740,3.82505546,2614.4,2614.1,3.15016969]
[1748947035046,3.88,2614.5,2614.1,3.15016969]
[1748947035343,3.82514624,2614.3,2614.1,3.15016969]
[1748947037246,3.82503077,2614.4,2614.1,3.15016969]
[1748947037840,3.82526203,2614.2,2613.8,0.61928618]
[1748947038149,3.82526135,2614.3,2614.1,3.15016969]
[1748947040628,7.70489063,2614.5,2614.1,3.15016969]
[1748947040629,7.70305382,2614.4,2614.1,3.15016969]
[1748947041154,3.82513475,2614.3,2614.1,3.15016969]
[1748947041314,3.82517895,2614.3,2614.1,3.15016969]
[1748947042654,7.70304328,2614.4,2614.1,3.15016969]
[1748947043917,3.82512942,2614.3,2614.1,3.15016969]
[1748947044318,7.70303396,2614.4,2614.1,3.15016969]
[1748947047967,3.874,2614.3,2614.1,3.82539926]
[1748947048258,3.874,2614.3,2614.2,3.15016969]
[1748947049346,4.83865709,2614.9,2614.2,3.15016969]
[1748947049347,3.82475561,2614.6,2614.2,3.15016969]
[1748947049540,3.874,2614.5,2614.4,3.15016969]
[1748947049758,3.82475665,2614.6,2614.4,3.15016969]
[1748947049943,3.874,2614.5,2614.4,3.15016969]
[1748947050870,7.6988231,2614.5,2614.4,3.15016969]
[1748947051486,7.6988231,2614.5,2614.2,3.15016969]
[1748947051689,3.82497536,2614.4,2614.2,3.15016969]
[1748947054981,7.69890676,2614.5,2614.2,3.15016969]
[1748947055842,3.82497412,2614.4,2614.2,3.15016969]
[1748947056386,7.69597412,2614.4,2614.2,3.15016969]
[1748947059996,3.8251157,2614.3,2614.2,3.15016969]
[1748947060499,7.69603908,2614.4,2614.2,3.15016969]
[1748947060948,1.0144,2614.9,2614.2,6.97542914]
[1748947061153,3.82370483,2615.3,2614.7,3.15016969]
[1748947061394,3.82386243,2615.2,2615.0,3.15016969]
[1748947061554,4.97601917,2615.2,2615.0,3.15016969]
[1748947062295,1.15215674,2615.2,2615.0,3.15016969]
[1748947062462,3.875,2615.1,2615.0,3.15016969]
[1748947063259,3.875,2615.1,2614.8,3.15016969]
[1748947063477,7.69894554,2615.1,2614.8,3.15016969]
[1748947063983,3.875,2615.1,2614.8,3.15016969]
[1748947065117,7.69897133,2615.1,2614.8,3.15016969]
[1748947065485,7.69897133,2615.1,2614.6,8.0]
[1748947065486,0.9456,2615.0,2614.6,8.0]
[1748947065685,4.76982871,2615.0,2614.6,8.0]
[1748947066428,0.9456,2615.0,2614.6,11.82465497]
[1748947066721,7.6990412,2615.1,2614.7,3.15016969]
[1748947067034,3.82411253,2615.0,2614.7,3.15016969]
[1748947067402,1.25028591,2615.0,2614.5,3.15016969]
[1748947067598,3.82444594,2614.8,2614.5,3.15016969]
[1748947067797,8.70164594,2614.8,2614.4,8.0]
[1748947068827,8.70164594,2614.8,2614.4,11.82495271]
[1748947069127,3.82459044,2614.7,2614.4,8.0]
[1748947069323,8.70166833,2614.8,2614.4,8.0]
[1748947069499,9.954269,2614.8,2614.4,8.0]
[1748947070599,5.12560067,2614.8,2614.4,11.82493631]
[1748947070800,3.873,2614.8,2614.5,3.15016969]
[1748947072723,7.69745467,2614.8,2614.5,3.15016969]
[1748947073828,3.873,2614.8,2614.5,3.15016969]
[1748947074031,7.69741892,2614.8,2614.5,3.15016969]
[1748947078750,3.82414857,2615.0,2614.7,3.15016969]
[1748947079064,3.87,2614.9,2614.7,3.15016969]
[1748947080938,0.9804,2615.4,2614.8,8.0]
[1748947081186,4.79656839,2615.7,2615.3,3.15016969]
[1748947081344,1.17726374,2615.8,2615.5,3.15016969]
[1748947081527,0.9935,2615.9,2615.5,3.15016969]
[1748947081528,7.69314192,2615.7,2615.5,3.15016969]
[1748947082063,3.871,2615.6,2615.5,3.15016969]
[1748947082380,3.872,2615.6,2615.5,3.15016969]
[1748947084373,3.872,2615.6,2615.2,3.82369006]
[1748947084374,3.872,2615.6,2615.3,3.15016969]
[1748947085676,7.69522456,2615.6,2615.3,3.15016969]
[1748947086572,7.69222456,2615.6,2615.3,3.15016969]
[1748947087191,3.869,2615.6,2615.3,3.52988605]
[1748947088437,7.69222148,2615.6,2615.3,3.52988605]
[1748947088934,3.869,2615.6,2615.3,3.52988605]
[1748947089847,7.69222316,2615.6,2615.3,3.52988605]
[1748947090049,3.82337909,2615.5,2615.3,3.52988605]
[1748947090611,3.82350692,2615.4,2615.3,0.37971636]
[1748947090876,3.82391423,2615.2,2615.0,8.0]
[1748947091047,3.82394554,2615.1,2614.8,8.0]
[1748947091550,3.82394554,2615.1,2615.0,8.0]
[1748947091752,3.82394554,2615.1,2615.0,8.38442294]
[1748947092864,3.82430606,2614.9,2614.6,3.15016969]
[1748947093066,3.82453053,2614.7,2614.6,3.15016969]
[1748947093375,7.69444438,2614.8,2614.6,3.15016969]
[1748947093583,3.87,2614.8,2614.7,8.0]
[1748947093879,3.87,2614.8,2614.7,8.38732568]
[1748947094675,7.69438427,2614.8,2614.7,8.38732568]
[1748947095763,3.87,2614.8,2614.7,8.38732568]
[1748947098570,7.69438427,2614.8,2614.7,8.38732568]
[1748947099096,7.69438427,2614.8,2614.7,0.38732568]
[1748947099453,3.82456111,2614.7,2614.5,0.66867261]
[1748947100905,7.69447814,2614.8,2614.5,0.66867261]
[1748947101066,7.69447814,2614.8,2614.6,3.15016969]
[1748947101269,3.82453053,2614.7,2614.6,3.15016969]
[1748947101949,3.82467681,2614.6,2614.5,0.66867261]
[1748947102104,7.69467681,2614.6,2614.5,0.66867261]
[1748947102963,3.87,2614.6,2614.5,0.66867261]
[1748947103172,3.87,2614.6,2614.5,8.66867261]
[1748947105798,3.87,2614.6,2614.5,9.04993643]
[1748947110362,1.0516,2615.0,2614.5,9.04993643]
[1748947110566,7.69428578,2614.9,2614.7,3.15016969]
[1748947110987,7.69432206,2614.9,2614.7,3.15016969]
[1748947111502,7.54307074,2615.9,2614.8,11.82429658]
[1748947111503,0.02,2615.9,2614.8,11.82429658]
[1748947111667,3.82362263,2615.4,2615.2,3.15016969]
[1748947111866,7.69365311,2615.3,2615.2,3.15016969]
[1748947114906,3.82353492,2615.4,2615.2,3.15016969]
[1748947114907,3.82352707,2615.4,2615.2,3.15016969]
[1748947115085,3.87,2615.3,2615.2,3.15016969]
[1748947115607,3.8382,2615.3,2615.2,3.15016969]
[1748947116109,7.66185311,2615.3,2615.2,3.15016969]
[1748947116606,7.66185311,2615.3,2615.0,3.15016969]
[1748947117806,4.8737671,2615.6,2615.2,3.15016969]
[1748947118114,0.02,2615.9,2615.5,8.0]
[1748947118273,3.871,2615.8,2615.7,3.15016969]
[1748947118622,3.82313864,2615.7,2615.4,8.0]
[1748947118785,3.87,2615.6,2615.4,8.0]
[1748947119402,7.69322185,2615.6,2615.4,8.0]
[1748947119581,3.87,2615.6,2615.4,8.0]
[1748947123592,3.87,2615.6,2615.5,3.15016969]
[1748947124617,3.8230013,2615.8,2615.5,3.15016969]
[1748947124822,3.869,2615.6,2615.5,3.15016969]
[1748947126522,3.84290134,2615.9,2615.5,3.15016969]
[1748947126822,3.869,2615.8,2615.5,3.15016969]
[1748947127223,7.69193286,2615.8,2615.5,3.15016969]
[1748947129021,3.82310037,2615.7,2615.5,3.15016969]
[1748947129187,3.869,2615.6,2615.5,11.15016969]
[1748947130327,3.869,2615.6,2615.5,8.0]
[1748947131325,3.869,2615.7,2615.5,11.15016969]
[1748947131530,3.82298676,2615.8,2615.5,11.15016969]
[1748947131725,3.869,2615.7,2615.5,11.15016969]
[1748947132035,3.869,2615.7,2615.5,3.15016969]
[1748947133311,0.02,2615.9,2615.5,3.15016969]
[1748947133516,0.02,2615.9,2615.0,7.69306442]
[1748947133517,0.02,2615.9,2615.7,6.97317629]
[1748947133712,0.02,2615.9,2615.8,3.82292224]
[1748947134810,0.02,2615.9,2615.8,3.15016969]
[1748947140254,0.02,2615.9,2615.7,8.0]
[1748947142655,0.02,2615.9,2615.7,11.82305337]
[1748947142851,0.02,2615.9,2615.8,3.15016969]
[1748947151589,0.02,2615.9,2615.8,9.08989193]
[1748947151788,0.9434,2616.7,2615.8,13.26696969]
[1748947151923,0.994,2617.3,2615.8,13.26696969]
[1748947151924,3.82146369,2616.8,2616.5,3.15016969]
[1748947152141,4.20575788,2616.7,2616.3,3.15016969]
[1748947152407,4.79221322,2616.4,2615.9,5.1994344]
[1748947152682,3.82226586,2616.3,2615.8,14.97303684]
[1748947152838,0.9701,2616.4,2615.8,14.97303684]
[1748947152839,3.82235487,2616.2,2615.8,14.97303684]
[1748947153038,3.82225519,2616.3,2615.8,14.97303684]
[1748947153234,3.82227074,2616.3,2615.8,3.15016969]
[1748947153439,3.868,2616.2,2615.8,3.15016969]
[1748947153677,3.868,2616.2,2615.7,3.82306117]
[1748947153678,3.8227073,2616.0,2615.6,3.36781476]
[1748947153844,3.82269889,2616.0,2615.6,4.04085732]
[1748947154039,3.82269889,2616.0,2614.9,1.21636511]
[1748947154040,3.82330646,2615.6,2614.9,1.21636511]
[1748947154240,3.82350692,2615.4,2614.8,3.15016969]
[1748947154467,3.82372446,2615.3,2614.8,6.97447245]
[1748947154778,3.82372063,2615.3,2614.8,7.19806401]
[1748947155097,3.82372063,2615.3,2615.0,3.15016969]
[1748947155674,5.07388743,2615.3,2615.0,3.15016969]
[1748947156679,3.82380459,2615.2,2615.0,3.15016969]
[1748947157177,5.07388517,2615.3,2615.0,3.15016969]
[1748947157351,1.2501668,2615.3,2615.0,3.15016969]
[1748947157552,4.8543,2615.5,2615.2,3.15016969]
[1748947157874,3.82352398,2615.4,2615.2,3.15016969]
[1748947158435,3.82357294,2615.4,2615.2,3.15016969]
[1748947158666,5.0736972,2615.4,2615.2,3.15016969]
[1748947158880,1.25012426,2615.4,2615.2,3.15016969]
[1748947159076,5.07369858,2615.4,2615.2,3.15016969]
[1748947160886,5.07367517,2615.4,2614.9,3.82416621]
[1748947161177,5.07367517,2615.4,2615.0,3.15016969]
[1748947161178,3.82385368,2615.2,2615.0,3.15016969]
[1748947161382,7.69385368,2615.2,2615.0,3.15016969]
[1748947162349,0.9486,2615.1,2615.0,3.15016969]
[1748947162781,0.9486,2615.1,2614.5,9.26764809]
[1748947162965,3.82467681,2614.6,2614.5,0.38126382]
[1748947163168,0.9486,2614.6,2614.3,3.15016969]
[1748947163341,0.9486,2614.6,2614.2,3.82523891]
[1748947163547,4.77328382,2614.6,2614.4,3.15016969]
[1748947163782,2.19557248,2614.6,2614.4,3.15016969]
[1748947164084,4.77332602,2614.6,2614.2,3.15016969]
[1748947164282,4.77332602,2614.6,2614.4,3.15016969]
[1748947164470,3.872,2614.7,2614.4,3.15016969]
[1748947164669,3.872,2614.7,2614.6,3.15016969]
[1748947165055,7.69653053,2614.7,2614.6,3.15016969]
[1748947165249,7.69653053,2614.7,2614.4,3.15016969]
[1748947165250,5.1229122,2614.7,2614.4,3.15016969]
[1748947165447,8.94751482,2614.7,2614.4,3.15016969]
[1748947169052,0.9965,2615.1,2614.6,3.15016969]
[1748947169259,4.82052954,2615.1,2614.8,3.15016969]
[1748947169574,3.82423802,2614.9,2614.8,3.15016969]
[1748947170286,3.82423802,2614.9,2614.1,4.49749662]
[1748947170287,8.56073037,2614.9,2614.6,3.15016969]
[1748947170501,0.9965,2614.7,2614.6,3.15016969]
[1748947171311,9.55730458,2614.9,2614.6,3.15016969]
[1748947171494,1.86099235,2614.9,2614.8,3.15016969]
[1748947171804,3.875,2615.0,2614.8,3.15016969]
[1748947172401,7.6991391,2615.0,2614.8,3.15016969]
[1748947173898,0.986,2615.1,2614.8,3.15016969]
[1748947174094,3.82369639,2615.3,2615.0,3.15016969]
[1748947174293,3.82369639,2615.3,2614.8,3.8242732]
[1748947174294,5.60893081,2615.3,2615.2,3.15016969]
[1748947174493,9.48393081,2615.3,2615.2,3.15016969]
[1748947176622,9.48293081,2615.3,2615.2,3.15016969]
[1748947176925,5.65914626,2615.3,2615.2,3.15016969]
[1748947177338,9.48279937,2615.3,2615.0,3.15016969]
[1748947177932,9.48281459,2615.3,2615.0,3.15016969]
[1748947178129,4.87454345,2615.2,2615.0,3.15016969]
[1748947178636,3.82394554,2615.1,2615.0,3.15016969]
[1748947178830,3.82394554,2615.1,2614.8,3.15016969]
[1748947178831,0.9494,2615.1,2614.8,3.15016969]
[1748947179136,3.82417062,2615.0,2614.8,3.15016969]
[1748947179904,3.82429974,2614.9,2614.6,3.15016969]
[1748947180597,7.69617527,2615.0,2614.6,3.15016969]
[1748947180803,3.872,2615.0,2614.8,3.15016969]
[1748947181401,3.82387797,2615.2,2614.8,3.15016969]
[1748947181635,7.69887797,2615.2,2615.0,3.15016969]
[1748947181824,8.95154201,2615.2,2615.0,3.15016969]
[1748947182522,3.876,2615.1,2615.0,3.15016969]
[1748947182738,7.69994554,2615.1,2615.0,3.15016969]
[1748947184745,7.69994554,2615.1,2614.8,3.15016969]
[1748947185064,3.82409936,2615.0,2614.8,3.15016969]
[1748947185644,3.82409936,2615.0,2614.6,11.15016969]
[1748947185645,3.82431568,2614.9,2614.6,11.15016969]
[1748947186140,3.82431568,2614.9,2614.4,11.15016969]
[1748947186141,7.70148076,2614.8,2614.4,11.15016969]
[1748947186332,7.70147153,2614.8,2614.4,11.15016969]
[1748947186510,3.877,2614.8,2614.4,11.15016969]
[1748947187051,0.9627,2615.2,2614.7,8.0]
[1748947187338,8.66749932,2615.2,2615.1,3.15016969]
[1748947187715,3.82400143,2615.1,2614.9,3.15016969]
[1748947189122,7.70400143,2615.1,2614.9,3.15016969]
[1748947189850,7.70402568,2615.1,2614.7,14.97468394]
[1748947190231,7.70402568,2615.1,2614.9,3.15016969]
[1748947190627,3.88,2615.1,2614.9,3.15016969]
[1748947191158,7.70394936,2615.1,2614.9,3.15016969]
[1748947191854,3.88,2615.1,2614.9,3.15016969]
[1748947192054,1.0225,2615.4,2614.9,3.15016969]
[1748947192254,1.0225,2615.4,2614.7,11.82448349]
[1748947192255,7.70273185,2615.3,2615.1,3.15016969]
[1748947195161,3.878,2615.2,2614.9,3.15016969]
[1748947200270,7.70180499,2615.2,2614.9,3.15016969]
[1748947200581,3.82433413,2614.9,2614.8,8.0]
[1748947200938,3.82438427,2614.8,2614.7,3.15016969]
[1748947201478,3.82438427,2614.8,2614.5,11.15016969]
[1748947201876,7.70031405,2614.9,2614.7,3.15016969]
[1748947202284,3.876,2614.9,2614.7,3.15016969]
[1748947204182,3.876,2614.9,2614.7,6.97467534]
[1748947204384,3.875,2614.9,2614.7,3.15016969]
[1748947206957,3.82441926,2614.8,2614.5,3.15016969]
[1748947207214,3.82441926,2614.8,2614.3,3.15016969]
[1748947207215,3.82467784,2614.6,2614.3,3.15016969]
[1748947207399,1.0166,2614.7,2614.3,3.15016969]
[1748947207691,3.874,2614.6,2614.3,3.15016969]
[1748947208102,3.874,2614.6,2614.5,3.15016969]
[1748947208712,3.874,2614.6,2614.5,11.15016969]
[1748947211902,3.874,2614.6,2614.5,3.15016969]
[1748947212106,4.7455143,2614.6,2614.3,3.15016969]
[1748947212504,3.8249694,2614.4,2614.3,3.15016969]
[1748947212704,7.6979694,2614.4,2614.3,3.15016969]